fUSD/lending_fUSD_20240428
["ID","MTS","AMOUNT","RATE_DAILY","PERIOD"]
[59961,1714333879359,-500.0,0.00012328,2]
[59962,1714333879370,-500.0,0.00012328,2]
[59963,1714333879379,-500.0,0.00012328,2]
[59964,1714333879390,-500.0,0.00012328,2]
[59965,1714333879399,-500.0,0.00012328,2]
[59966,1714333879409,-500.0,0.00012328,2]
[59967,1714333879419,-500.0,0.00012328,2]
[59968,1714333879430,-500.0,0.00012328,2]
[59969,1714333879441,-512.94,0.00012328,2]
[59970,1714333879451,-500.0,0.00012328,2]
[59971,1714333879461,-500.0,0.00012328,2]
[59972,1714333879472,-500.0,0.00012328,2]
[59973,1714333879482,-500.0,0.00012328,2]
[59975,1714333879502,-580.66,0.00012328,2]
[59976,1714333879512,-580.36,0.00012328,2]
[59977,1714333879522,-500.0,0.00012328,2]
[59979,1714333879542,-500.0,0.00012328,2]
[59981,1714333879562,-500.0,0.00012328,2]
[59982,1714333879572,-500.0,0.00012328,2]
[59983,1714333879582,-500.0,0.00012328,2]
[59984,1714333879591,-500.0,0.00012328,2]
[59985,1714333879601,-500.0,0.00012328,2]
[59986,1714333879610,-500.0,0.00012328,2]
[59987,1714333879620,-500.0,0.00012328,2]
[59988,1714333879630,-500.0,0.00012328,2]
[59989,1714333879640,-500.0,0.00012328,2]
[59990,1714333879650,-500.0,0.00012328,2]
[59991,1714333879660,-500.0,0.00012328,2]
[59992,1714333879670,-500.0,0.00012328,2]
[59993,1714333879680,-500.0,0.00012328,2]
[59994,1714333879690,-500.0,0.00012328,2]
[59995,1714333879700,-163.66,0.00012328,2]
[59996,1714333879711,-500.0,0.00012328,2]
[59997,1714333879721,-500.0,0.00012328,2]
[59998,1714333879730,-500.0,0.00012328,2]
[59999,1714333879740,-309.56,0.00012328,2]
[60000,1714333879750,-718.62,0.00012328,2]
[60001,1714333879761,-500.0,0.00012328,2]
[60002,1714333879771,-749.09,0.00012328,2]
[60003,1714333879781,-500.0,0.00012328,2]
[60004,1714333879791,-500.0,0.00012328,2]
[60005,1714333879802,-500.0,0.00012328,2]
[60006,1714333879811,-500.0,0.00012328,2]
[60007,1714333879821,-500.0,0.00012328,2]
[60008,1714333879831,-500.0,0.00012328,2]
[60009,1714333879840,-500.0,0.00012328,2]
[60010,1714333879851,-296.06773144,0.00012328,2]
[60011,1714333879860,-651.61,0.00012328,2]
[60012,1714333879870,-500.0,0.00012328,2]
[60013,1714333879880,-596.5,0.00012328,2]
[60014,1714333879890,-500.0,0.00012328,2]
[60015,1714333879900,-500.0,0.00012328,2]
[60016,1714333879910,-177.11,0.00012328,2]
[60017,1714333879919,-500.0,0.00012328,2]
[60018,1714333879929,-500.0,0.00012328,2]
[60019,1714333879939,-509.59,0.00012328,2]
[60020,1714333879949,-500.0,0.00012328,2]
[60021,1714333879958,-817.82,0.00012328,2]
[60022,1714333879968,-500.0,0.00012328,2]
[60023,1714333879978,-500.0,0.00012328,2]
[60024,1714333879987,-500.0,0.00012328,2]
[60025,1714333879997,-500.0,0.00012328,2]
[60026,1714333880006,-500.0,0.00012328,2]
[60027,1714333880016,-500.0,0.00012328,2]
[60028,1714333880027,-500.0,0.00012328,2]
[60029,1714333880040,-500.0,0.00012328,2]
[60030,1714333880050,-784.15,0.00012328,2]
[60031,1714333880060,-980.94,0.00012328,2]
[60032,1714333880071,-500.0,0.00012328,2]
[60033,1714333880081,-500.0,0.00012328,2]
[60034,1714333880091,-732.51,0.00012328,2]
[60035,1714333880101,-500.0,0.00012328,2]
[60036,1714333880113,-683.63,0.00012328,2]
[60037,1714333880124,-500.0,0.00012328,2]
[60038,1714333880135,-500.0,0.00012328,2]
[60039,1714333880145,-500.0,0.00012328,2]
[60040,1714333880155,-500.0,0.00012328,2]
[60041,1714333880165,-500.0,0.00012328,2]
[60042,1714333880175,-500.0,0.00012328,2]
[60043,1714333880185,-180.1,0.00012328,2]
[60044,1714333880195,-500.0,0.00012328,2]
[60045,1714333880207,-500.0,0.00012328,2]
[60046,1714333880217,-500.0,0.00012328,2]
[60047,1714333880227,-508.99,0.00012328,2]
[60048,1714333880236,-500.0,0.00012328,2]
[60049,1714333880246,-500.0,0.00012328,2]
[60050,1714333880257,-913.73,0.00012328,2]
[60051,1714333880268,-393.86,0.00012328,2]
[60052,1714333880278,-186.43629175,0.00012328,2]
[60053,1714333880288,-500.0,0.00012328,2]
[60054,1714333880298,-500.0,0.00012328,2]
[60055,1714333880308,-500.0,0.00012328,2]
[60056,1714333880318,-500.0,0.00012328,2]
[60057,1714333880328,-500.0,0.00012328,2]
[60058,1714333880339,-500.0,0.00012328,2]
[60059,1714333880349,-500.0,0.00012328,2]
[60060,1714333880359,-500.0,0.00012328,2]
[60061,1714333880370,-651.82,0.00012328,2]
[60062,1714333880380,-500.0,0.00012328,2]
[60063,1714333880389,-970.58,0.00012328,2]
[60064,1714333880399,-500.0,0.00012328,2]
[60065,1714333880409,-522.79,0.00012328,2]
[60066,1714333880419,-500.0,0.00012328,2]
[60067,1714333880429,-609.61888243,0.00012328,2]
[60068,1714333880440,-500.0,0.00012328,2]
[60069,1714333880450,-634.81,0.00012328,2]
[60070,1714333880459,-1130.44,0.00012328,2]
[60071,1714333880469,-500.0,0.00012328,2]
[60072,1714333880480,-500.0,0.00012328,2]
[60073,1714333880490,-594.1,0.00012328,2]
[60074,1714333880500,-500.0,0.00012328,2]
[60075,1714333880510,-500.0,0.00012328,2]
[60076,1714333880520,-610.07,0.00012328,2]
[60077,1714333880530,-500.0,0.00012328,2]
[60078,1714333880540,-802.03,0.00012328,2]
[60079,1714333880550,-500.0,0.00012328,2]
[60080,1714333880560,-500.0,0.00012328,2]
[60081,1714333880570,-500.0,0.00012328,2]
[60082,1714333880580,-500.0,0.00012328,2]
[60083,1714333880590,-500.0,0.00012328,2]
[60084,1714333880600,-2244.82,0.00012328,2]
[60085,1714333880610,-841.44,0.00012328,2]
[60086,1714333880620,-500.0,0.00012328,2]
[60087,1714333880631,-500.0,0.00012328,2]
[60088,1714333880641,-500.0,0.00012328,2]
[60089,1714333880651,-643.85,0.00012328,2]
[60090,1714333880661,-500.0,0.00012328,2]
[60091,1714333880671,-598.88,0.00012328,2]
[60092,1714333880682,-500.0,0.00012328,2]
[60093,1714333880692,-1510.64,0.00012328,2]
[60094,1714333880702,-500.0,0.00012328,2]
[60095,1714333880713,-7836.77,0.00012328,2]
[60096,1714333880723,-536.76,0.00012328,2]
[60097,1714333880733,-500.0,0.00012328,2]
[60098,1714333880744,-2120.38,0.00012328,2]
[60099,1714333880755,-500.0,0.00012328,2]
[60100,1714333880765,-500.0,0.00012328,2]
[60101,1714333880775,-3738.06,0.00012328,2]
[60102,1714333880786,-500.0,0.00012328,2]
[60103,1714333880797,-500.0,0.00012328,2]
[60104,1714333880807,-930.99,0.00012328,2]
[60105,1714333880817,-500.0,0.00012328,2]
[60106,1714333880827,-500.0,0.00012328,2]
[60107,1714333880837,-809.24,0.00012328,2]
[60108,1714333880847,-552.44,0.00012328,2]
[60109,1714333880857,-283.18497661,0.00012328,2]
[60110,1714333880867,-500.0,0.00012328,2]
[60111,1714333880877,-500.0,0.00012328,2]
[60112,1714333880887,-851.63,0.00012328,2]
[60113,1714333880898,-500.0,0.00012328,2]
[60114,1714333880908,-956.01,0.00012328,2]
[60115,1714333880919,-239.64900161,0.00012328,2]
[60116,1714333880929,-500.0,0.00012328,2]
[60117,1714333880940,-935.48,0.00012328,2]
[60118,1714333880952,-500.0,0.00012328,2]
[60119,1714333880963,-500.0,0.00012328,2]
[60120,1714333880974,-669.74,0.00012328,2]
[60121,1714333880984,-1854.49,0.00012328,2]
[60122,1714333880995,-500.0,0.00012328,2]
[60123,1714333881005,-2438.98,0.00012328,2]
[60124,1714333881015,-500.0,0.00012328,2]
[60125,1714333881025,-500.0,0.00012328,2]
[60126,1714333881040,-557.3,0.00012328,2]
[60127,1714333881050,-500.0,0.00012328,2]
[60128,1714333881060,-500.0,0.00012328,2]
[60129,1714333881071,-500.0,0.00012328,2]
[60130,1714333881082,-3234.99,0.00012328,2]
[60131,1714333881092,-500.0,0.00012328,2]
[60132,1714333881103,-1163.73,0.00012328,2]
[60133,1714333881114,-500.0,0.00012328,2]
[60134,1714333881125,-1439.84,0.00012328,2]
[60135,1714333881136,-500.0,0.00012328,2]
[60136,1714333881147,-2793.67,0.00012328,2]
[60137,1714333881157,-512.25025415,0.00012328,2]
[60138,1714333881168,-500.0,0.00012328,2]
[60139,1714333881178,-500.0,0.00012328,2]
[60140,1714333881188,-1468.32,0.00012328,2]
[60141,1714333881198,-2433.94,0.00012328,2]
[60142,1714333881208,-500.0,0.00012328,2]
[60143,1714333881218,-500.0,0.00012328,2]
[60144,1714333881228,-500.0,0.00012328,2]
[60145,1714333881239,-3274.87,0.00012328,2]
[60146,1714333881249,-7669.52,0.00012328,2]
[60147,1714333881259,-1149.81,0.00012328,2]
[60148,1714333881269,-920.14,0.00012328,2]
[60149,1714333881279,-500.0,0.00012328,2]
[60150,1714333881289,-500.0,0.00012328,2]
[60151,1714333881299,-500.0,0.00012328,2]
[60152,1714333881309,-500.0,0.00012328,2]
[60153,1714333881319,-500.0,0.00012328,2]
[60154,1714333881329,-935.36,0.00012328,2]
[60155,1714333881561,-1205.49,0.00012328,2]
[60156,1714333881621,-500.0,0.00012328,2]
[60157,1714333881631,-500.0,0.00012328,2]
[60158,1714333881641,-500.0,0.00012328,2]
[60159,1714333881651,-1295.23,0.00012328,2]
[60160,1714333881661,-500.0,0.00012328,2]
[60161,1714333881671,-1020.65,0.00012328,2]
[60162,1714333881681,-1568.12,0.00012328,2]
[60163,1714333881691,-500.0,0.00012328,2]
[60164,1714333881701,-500.0,0.00012328,2]
[60165,1714333881710,-500.0,0.00012328,2]
[60166,1714333881720,-820.48,0.00012328,2]
[60167,1714333881730,-500.0,0.00012328,2]
[60168,1714333881739,-500.0,0.00012328,2]
[60169,1714333881749,-500.0,0.00012328,2]
[60170,1714333881758,-500.0,0.00012328,2]
[60171,1714333881768,-500.0,0.00012328,2]
[60172,1714333881778,-500.0,0.00012328,2]
[60173,1714333881788,-500.0,0.00012328,2]
[60174,1714333881798,-642.64,0.00012328,2]
[60175,1714333881807,-877.73,0.00012328,2]
[60176,1714333881817,-1549.96,0.00012328,2]
[60177,1714333881827,-500.0,0.00012328,2]
[60178,1714333881836,-500.0,0.00012328,2]
[60179,1714333881846,-686.14,0.00012328,2]
[60180,1714333881855,-500.0,0.00012328,2]
[60181,1714333881865,-500.0,0.00012328,2]
[60182,1714333881875,-500.0,0.00012328,2]
[60183,1714333881884,-1200.84,0.00012328,2]
[60184,1714333881894,-2087.69,0.00012328,2]
[60185,1714333881903,-736.19,0.00012328,2]
[60186,1714333881914,-1033.91,0.00012328,2]
[60187,1714333881923,-1078.64,0.00012328,2]
[60188,1714333881932,-230.69,0.00012328,2]
[60189,1714333881941,-500.0,0.00012328,2]
[60190,1714333881951,-500.0,0.00012328,2]
[60191,1714333881961,-507.87,0.00012328,2]
[60192,1714333881971,-660.63,0.00012328,2]
[60193,1714333881981,-1394.6,0.00012328,2]
[60194,1714333881990,-3293.48,0.00012328,2]
[60195,1714333882000,-500.0,0.00012328,2]
[60196,1714333882009,-500.0,0.00012328,2]
[60197,1714333882019,-1383.26,0.00012328,2]
[60198,1714333882028,-369.76909602,0.00012328,2]
[60199,1714333882040,-666.21,0.00012328,2]
[60200,1714333882050,-1038.55,0.00012328,2]
[60201,1714333882060,-582.9,0.00012328,2]
[60202,1714333882070,-2363.73,0.00012328,2]
[60203,1714333882079,-500.0,0.00012328,2]
[60204,1714333882088,-500.0,0.00012328,2]
[60205,1714333882098,-1482.37,0.00012328,2]
[60206,1714333882107,-581.73,0.00012328,2]
[60207,1714333882120,-635.98,0.00012328,2]
[60208,1714333882130,-519.27,0.00012328,2]
[60209,1714333882140,-1107.0,0.00012328,2]
[60210,1714333882150,-802.45,0.00012328,2]
[60211,1714333882160,-500.0,0.00012328,2]
[60212,1714333882169,-500.0,0.00012328,2]
[60213,1714333882179,-1887.52,0.00012328,2]
[60214,1714333882188,-500.0,0.00012328,2]
[60215,1714333882198,-500.0,0.00012328,2]
[60216,1714333882208,-500.0,0.00012328,2]
[60217,1714333882217,-500.0,0.00012328,2]
[60218,1714333882227,-500.0,0.00012328,2]
[60219,1714333882236,-2646.6,0.00012328,2]
[60220,1714333882246,-500.0,0.00012328,2]
[60221,1714333882255,-1312.38,0.00012328,2]
[60222,1714333882265,-500.0,0.00012328,2]
[60223,1714333882274,-2191.19,0.00012328,2]
[60224,1714333882284,-500.0,0.00012328,2]
[60225,1714333882293,-2890.81,0.00012328,2]
[60226,1714333882303,-1910.63,0.00012328,2]
[60227,1714333882313,-500.0,0.00012328,2]
[60228,1714333882322,-1435.69,0.00012328,2]
[60229,1714333882332,-1377.83,0.00012328,2]
[60230,1714333882341,-500.0,0.00012328,2]
[60231,1714333882350,-500.0,0.00012328,2]
[60232,1714333882360,-500.0,0.00012328,2]
[60233,1714333882369,-500.0,0.00012328,2]
[60234,1714333882379,-814.52,0.00012328,2]
[60235,1714333882388,-877.24,0.00012328,2]
[60236,1714333882397,-500.0,0.00012328,2]
[60237,1714333882407,-2530.69,0.00012328,2]
[60238,1714333882416,-500.0,0.00012328,2]
[60239,1714333882426,-500.0,0.00012328,2]
[60240,1714333882435,-621.4,0.00012328,2]
[60241,1714333882446,-500.0,0.00012328,2]
[60242,1714333882455,-500.0,0.00012328,2]
[60243,1714333882464,-2915.48,0.00012328,2]
[60244,1714333882474,-1278.3,0.00012328,2]
[60245,1714333882483,-500.0,0.00012328,2]
[60246,1714333882494,-1146.85,0.00012328,2]
[60247,1714333882503,-500.0,0.00012328,2]
[60248,1714333882513,-500.0,0.00012328,2]
[60249,1714333882522,-500.0,0.00012328,2]
[60250,1714333882531,-763.84,0.00012328,2]
[60251,1714333882541,-3171.22,0.00012328,2]
[60252,1714333882551,-630.5,0.00012328,2]
[60253,1714333882560,-2674.38,0.00012328,2]
[60254,1714333882570,-500.0,0.00012328,2]
[60255,1714333882579,-2017.39,0.00012328,2]
[60256,1714333882588,-500.0,0.00012328,2]
[60257,1714333882598,-500.0,0.00012328,2]
[60258,1714333882607,-856.24,0.00012328,2]
[60259,1714333882617,-534.56,0.00012328,2]
[60260,1714333882626,-500.0,0.00012328,2]
[60261,1714333882636,-500.0,0.00012328,2]
[60262,1714333882645,-500.0,0.00012328,2]
[60263,1714333882655,-500.0,0.00012328,2]
[60264,1714333882665,-500.0,0.00012328,2]
[60265,1714333882674,-500.0,0.00012328,2]
[60266,1714333882684,-500.0,0.00012328,2]
[60267,1714333882694,-500.0,0.00012328,2]
[60268,1714333882703,-500.0,0.00012328,2]
[60269,1714333882712,-1121.09,0.00012328,2]
[60270,1714333882722,-978.42,0.00012328,2]
[60271,1714333882731,-500.0,0.00012328,2]
[60272,1714333882741,-657.57,0.00012328,2]
[60273,1714333882750,-500.0,0.00012328,2]
[60275,1714333882769,-908.28,0.00012328,2]
[60277,1714333882789,-500.0,0.00012328,2]
[60278,1714333882800,-500.0,0.00012328,2]
[60279,1714333882809,-509.22,0.00012328,2]
[60281,1714333882828,-647.31,0.00012328,2]
[60282,1714333882837,-500.0,0.00012328,2]
[60283,1714333882847,-914.72,0.00012328,2]
[60284,1714333882856,-500.0,0.00012328,2]
[60285,1714333882866,-500.0,0.00012328,2]
[60286,1714333882876,-3853.58,0.00012328,2]
[60287,1714333882886,-942.92,0.00012328,2]
[60288,1714333882895,-673.74,0.00012328,2]
[60289,1714333882904,-500.0,0.00012328,2]
[60290,1714333882914,-705.71,0.00012328,2]
[60291,1714333882924,-530.0,0.00012329,2]
[60292,1714333882933,-1228.0,0.00012497,2]
[60293,1714333882943,-1256.0,0.00012497,2]
[60294,1714333882952,-542.0,0.00012497,2]
[60295,1714333882962,-957.743,0.00012497,2]
[60296,1714333882971,-416.498,0.00012497,2]
[60297,1714333882980,-1056.0,0.00012497,2]
[60298,1714333882990,-462.48,0.00012602,2]
[60299,1714333882999,-500.0,0.00012602,2]
[60300,1714333883008,-625.08073638,0.00012602,2]
[60301,1714333883018,-559.47,0.00012602,2]
[60302,1714333883027,-534.65,0.00012602,2]
[60303,1714333883039,-500.0,0.00012602,2]
[60304,1714333883049,-500.0,0.00012602,2]
[60305,1714333883058,-500.0,0.00012602,2]
[60307,1714333883078,-500.0,0.00012602,2]
[60308,1714333883088,-500.0,0.00012602,2]
[60309,1714333883097,-500.0,0.00012602,2]
[60310,1714333883107,-310.02,0.00012602,2]
[60311,1714333883119,-500.0,0.00012602,2]
[60312,1714333883128,-500.0,0.00012602,2]
[60313,1714333883138,-500.0,0.00012602,2]
[60314,1714333883147,-500.0,0.00012602,2]
[60315,1714333883157,-500.0,0.00012602,2]
[60316,1714333883166,-500.0,0.00012602,2]
[60317,1714333883175,-500.0,0.00012602,2]
[60318,1714333883185,-500.0,0.00012602,2]
[60319,1714333883195,-500.0,0.00012602,2]
[60320,1714333883204,-500.0,0.00012602,2]
[60321,1714333883214,-500.0,0.00012602,2]
[60322,1714333883224,-500.0,0.00012602,2]
[60323,1714333883233,-500.0,0.00012602,2]
[60324,1714333883243,-539.5327952,0.00012602,2]
[60325,1714333883253,-500.0,0.00012602,2]
[60326,1714333883263,-500.0,0.00012602,2]
[60327,1714333883273,-500.0,0.00012602,2]
[60328,1714333883283,-500.0,0.00012602,2]
[60329,1714333883292,-500.0,0.00012602,2]
[60330,1714333883301,-500.0,0.00012602,2]
[60331,1714333883310,-500.0,0.00012602,2]
[60332,1714333883320,-500.0,0.00012602,2]
[60333,1714333883330,-374.42857133,0.00012602,2]
[60334,1714333883339,-500.0,0.00012602,2]
[60335,1714333883349,-500.0,0.00012602,2]
[60336,1714333883359,-500.0,0.00012602,2]
[60337,1714333883368,-500.0,0.00012602,2]
[60338,1714333883377,-500.0,0.00012602,2]
[60339,1714333883387,-500.0,0.00012602,2]
[60340,1714333883396,-500.0,0.00012602,2]
[60341,1714333883405,-500.0,0.00012602,2]
[60342,1714333883415,-500.0,0.00012602,2]
[60343,1714333883424,-500.0,0.00012602,2]
[60344,1714333883435,-500.0,0.00012602,2]
[60345,1714333883445,-500.0,0.00012602,2]
[60346,1714333883456,-500.0,0.00012602,2]
[60347,1714333883465,-500.0,0.00012602,2]
[60348,1714333883475,-500.0,0.00012602,2]
[60349,1714333883484,-500.0,0.00012602,2]
[60350,1714333883494,-500.0,0.00012602,2]
[60351,1714333883503,-500.0,0.00012602,2]
[60352,1714333883513,-593.50270235,0.00012602,2]
[60353,1714333883523,-500.0,0.00012602,2]
[60354,1714333883532,-500.0,0.00012602,2]
[60355,1714333883541,-500.0,0.00012602,2]
[60356,1714333883550,-500.0,0.00012602,2]
[60357,1714333883559,-500.0,0.00012602,2]
[60358,1714333883569,-500.0,0.00012602,2]
[60359,1714333883578,-214.93478006,0.00012602,2]
[60360,1714333883587,-500.0,0.00012602,2]
[60361,1714333883597,-500.0,0.00012602,2]
[60362,1714333883606,-500.0,0.00012602,2]
[60363,1714333883617,-500.0,0.00012602,2]
[60364,1714333883626,-500.0,0.00012602,2]
[60365,1714333883636,-500.0,0.00012602,2]
[60366,1714333883646,-500.0,0.00012602,2]
[60367,1714333883655,-500.0,0.00012602,2]
[60368,1714333883664,-577.22754468,0.00012602,2]
[60369,1714333883674,-500.0,0.00012602,2]
[60370,1714333883684,-500.0,0.00012602,2]
[60371,1714333883694,-500.0,0.00012602,2]
[60372,1714333883703,-275.37959515,0.00012602,2]
[60373,1714333883713,-500.0,0.00012602,2]
[60374,1714333883722,-500.0,0.00012602,2]
[60375,1714333883732,-500.0,0.00012602,2]
[60376,1714333883741,-500.0,0.00012602,2]
[60377,1714333883750,-500.0,0.00012602,2]
[60378,1714333883760,-500.0,0.00012602,2]
[60379,1714333883771,-1063.6,0.00012602,2]
[60380,1714333883780,-500.0,0.00012602,2]
[60381,1714333883789,-500.0,0.00012602,2]
[60382,1714333883799,-1029.24,0.00012602,2]
[60383,1714333883808,-500.0,0.00012602,2]
[60384,1714333883817,-540.5,0.00012602,2]
[60385,1714333883826,-500.0,0.00012602,2]
[60386,1714333883835,-500.0,0.00012602,2]
[60387,1714333883844,-500.0,0.00012602,2]
[60388,1714333883853,-500.0,0.00012602,2]
[60389,1714333883863,-704.81,0.00012602,2]
[60390,1714333883873,-500.0,0.00012602,2]
[60391,1714333883883,-806.93,0.00012602,2]
[60392,1714333883892,-500.0,0.00012602,2]
[60393,1714333883964,-500.0,0.00012602,2]
[60394,1714333883973,-500.0,0.00012602,2]
[60395,1714333883983,-500.0,0.00012602,2]
[60396,1714333883992,-500.0,0.00012602,2]
[60397,1714333884001,-754.87,0.00012602,2]
[60398,1714333884011,-218.4,0.00012602,2]
[60399,1714333884020,-500.0,0.00012602,2]
[60400,1714333884030,-500.0,0.00012602,2]
[60401,1714333884043,-500.0,0.00012602,2]
[60402,1714333884052,-500.0,0.00012602,2]
[60403,1714333884062,-500.0,0.00012602,2]
[60404,1714333884072,-500.0,0.00012602,2]
[60405,1714333884083,-500.0,0.00012602,2]
[60406,1714333884092,-500.0,0.00012602,2]
[60407,1714333884103,-500.0,0.00012602,2]
[60409,1714333884124,-500.0,0.00012602,2]
[60411,1714333884142,-500.0,0.00012602,2]
[60413,1714333884161,-500.0,0.00012602,2]
[60415,1714333884179,-500.0,0.00012602,2]
[60416,1714333884187,-500.0,0.00012602,2]
[60417,1714333884197,-1209.6,0.00012602,2]
[60418,1714333884206,-500.0,0.00012602,2]
[60419,1714333884215,-500.0,0.00012602,2]
[60420,1714333884224,-500.0,0.00012602,2]
[60421,1714333884233,-500.0,0.00012602,2]
[60422,1714333884242,-500.0,0.00012602,2]
[60423,1714333884251,-500.0,0.00012602,2]
[60424,1714333884259,-500.0,0.00012602,2]
[60425,1714333884268,-500.0,0.00012602,2]
[60426,1714333884277,-500.0,0.00012602,2]
[60427,1714333884285,-500.0,0.00012602,2]
[60428,1714333884294,-500.0,0.00012602,2]
[60429,1714333884303,-500.0,0.00012602,2]
[60430,1714333884312,-500.0,0.00012602,2]
[60431,1714333884322,-500.0,0.00012602,2]
[60432,1714333884331,-500.0,0.00012602,2]
[60433,1714333884340,-500.0,0.00012602,2]
[60434,1714333884349,-500.0,0.00012602,2]
[60435,1714333884358,-718.62,0.00012602,2]
[60436,1714333884368,-500.0,0.00012602,2]
[60437,1714333884377,-749.09,0.00012602,2]
[60439,1714333884395,-500.0,0.00012602,2]
[60441,1714333884412,-500.0,0.00012602,2]
[60443,1714333884432,-500.0,0.00012602,2]
[60444,1714333884441,-500.0,0.00012602,2]
[60445,1714333884451,-651.61,0.00012602,2]
[60446,1714333884461,-500.0,0.00012602,2]
[60447,1714333884470,-596.5,0.00012602,2]
[60448,1714333884480,-500.0,0.00012602,2]
[60449,1714333884490,-500.0,0.00012602,2]
[60451,1714333884510,-570.13404043,0.00012602,2]
[60453,1714333884528,-509.59,0.00012602,2]
[60455,1714333884547,-817.82,0.00012602,2]
[60457,1714333884566,-500.0,0.00012602,2]
[60459,1714333884585,-500.0,0.00012602,2]
[60461,1714333884603,-500.0,0.00012602,2]
[60463,1714333884621,-500.0,0.00012602,2]
[60465,1714333884640,-980.94,0.00012602,2]
[60467,1714333884659,-732.51,0.00012602,2]
[60469,1714333884677,-500.0,0.00012602,2]
[60471,1714333884696,-500.0,0.00012602,2]
[60473,1714333884715,-500.0,0.00012602,2]
[60475,1714333884734,-500.0,0.00012602,2]
[60477,1714333884752,-500.0,0.00012602,2]
[60479,1714333884771,-500.0,0.00012602,2]
[60481,1714333884789,-598.01,0.00012602,2]
[60483,1714333884809,-500.0,0.00012602,2]
[60485,1714333884829,-500.0,0.00012602,2]
[60486,1714333884838,-500.0,0.00012602,2]
[60487,1714333884847,-500.0,0.00012602,2]
[60489,1714333884865,-500.0,0.00012602,2]
[60490,1714333884875,-500.0,0.00012602,2]
[60491,1714333884884,-651.82,0.00012602,2]
[60492,1714333884894,-500.0,0.00012602,2]
[60493,1714333884903,-970.58,0.00012602,2]